bitfinex-derivatives/quotes_ETHF0:USTF0_20260310
["timestamp","ask_amount","ask_price","bid_price","bid_amount"]
[1773148104585,1.59095759,2057.2,2056.2,1.52552686]
[1773148104882,1.59095759,2056.8,2056.0,1.52552686]
[1773148106294,1.59095759,2056.6,2055.5,1.52552686]
[1773148108083,0.24309,2056.7,2055.5,1.52552686]
[1773148108084,1.59095759,2056.4,2055.5,1.52552686]
[1773148108289,1.59095759,2056.2,2055.5,1.52552686]
[1773148110094,1.59095759,2056.2,2055.4,0.00383957]
[1773148110395,1.59095759,2056.2,2055.4,1.52936643]
[1773148111394,1.59095759,2056.7,2055.4,1.52936643]
[1773148111895,1.59095759,2056.7,2055.4,7.90236643]
[1773148112096,1.59095759,2056.7,2055.5,1.52552686]
[1773148113196,1.59095759,2056.7,2055.7,1.52552686]
[1773148113796,1.59095759,2056.7,2055.9,1.4750142]
[1773148124805,1.83405759,2056.7,2055.9,1.4750142]
[1773148125006,1.83405759,2056.7,2055.5,1.4750142]
[1773148125901,1.83405759,2056.7,2055.7,1.4750142]
[1773148127806,0.24314,2056.3,2055.7,1.4750142]
[1773148128008,1.47940099,2056.2,2055.5,1.57857866]
[1773148130109,1.47940099,2056.0,2055.4,1.58241823]
[1773148132213,1.47940099,2056.4,2055.4,1.58241823]
[1773148132415,1.47940099,2056.2,2055.4,1.58241823]
[1773148132610,1.47940099,2056.5,2055.4,1.58241823]
[1773148132811,1.47940099,2056.3,2055.4,1.58241823]
[1773148135609,0.24311,2056.6,2055.6,1.57857866]
[1773148135610,1.47940099,2056.6,2055.6,1.57857866]
[1773148136313,1.47940099,2056.4,2055.6,1.57857866]
[1773148137011,1.47940099,2056.8,2055.6,1.57857866]
[1773148137211,1.47940099,2056.6,2055.6,1.57857866]
[1773148138914,1.47940099,2056.4,2055.6,1.57857866]
[1773148139915,1.47940099,2056.4,2055.5,1.57857866]
[1773148140312,1.47940099,2056.2,2055.5,1.57857866]
[1773148140517,1.47940099,2056.0,2054.7,1.57857866]
[1773148141517,1.47940099,2056.0,2054.7,1.58343776]
[1773148142116,1.47940099,2055.8,2054.7,1.58343776]
[1773148146028,1.47940099,2055.8,2054.9,1.46870838]
[1773148146524,1.54670373,2056.0,2054.9,1.46870838]
[1773148147829,1.54670373,2055.8,2054.9,1.46870838]
[1773148154434,1.54670373,2055.8,2055.1,1.46870838]
[1773148156829,1.54670373,2055.8,2054.8,1.46870838]
[1773148157433,1.54670373,2055.6,2054.8,1.46870838]
[1773148157633,1.55180876,2055.6,2054.8,1.46870838]
[1773148163238,1.55180876,2055.6,2055.0,1.46870838]
[1773148163541,0.00510503,2055.6,2055.0,1.46870838]
[1773148165745,1.54670373,2056.3,2055.2,1.46870838]
[1773148166743,1.55205471,2056.3,2055.2,1.46870838]
[1773148167442,1.55205471,2056.3,2055.4,1.46870838]
[1773148173645,1.54670373,2056.1,2055.0,1.40835555]
[1773148174544,1.54670373,2056.1,2055.2,1.40835555]
[1773148175247,1.54670373,2056.1,2055.4,1.40835555]
[1773148175548,1.42074333,2056.3,2055.4,1.40835555]
[1773148175747,0.00535098,2056.3,2055.6,1.40835555]
[1773148176640,0.00535098,2056.3,2055.8,1.40835555]
[1773148178844,1.41539235,2056.5,2055.8,1.40835555]
[1773148179150,1.41539235,2056.9,2055.8,1.40835555]
[1773148179450,1.41539235,2056.9,2056.0,1.40835555]
[1773148180150,1.42061444,2056.9,2056.0,1.40835555]
[1773148181651,0.00522209,2056.9,2056.0,1.40835555]
[1773148181853,0.00522209,2056.9,2056.2,1.40835555]
[1773148182053,0.00522209,2056.9,2056.2,1.41453237]
[1773148183753,1.42061444,2056.9,2056.2,1.41453237]
[1773148186158,1.41539235,2056.7,2055.9,1.40835555]
[1773148187054,1.41539235,2056.7,2055.9,0.00449055]
[1773148187460,1.42775169,2056.5,2055.9,0.00449055]
[1773148187660,1.42775169,2056.5,2055.9,1.37856652]
[1773148188159,1.42775169,2056.5,2055.6,1.37407597]
[1773148189157,1.42775169,2056.5,2055.6,1.37798126]
[1773148192963,1.42775169,2056.8,2055.8,1.37407597]
[1773148193265,1.42775169,2056.8,2056.0,1.37407597]
[1773148193563,1.43297378,2056.9,2056.0,1.37407597]
[1773148194963,0.00522209,2056.9,2056.0,1.37407597]
[1773148195559,1.43297378,2056.9,2056.0,1.37407597]
[1773148197166,1.43297378,2056.9,2056.2,1.37407597]
[1773148198068,0.00522209,2056.9,2056.2,1.37407597]
[1773148198970,1.43297378,2056.9,2056.2,1.37407597]
[1773148200965,0.00522209,2056.9,2056.2,1.37407597]
[1773148201566,1.43297378,2056.9,2056.2,1.37407597]
[1773148203171,0.00522209,2056.9,2056.2,1.37407597]
[1773148204773,0.00522209,2056.9,2056.3,1.37657943]
[1773148204973,1.43212238,2056.9,2056.3,1.37657943]
[1773148205874,0.00522209,2056.9,2056.3,1.37657943]
[1773148207673,1.43212238,2056.9,2056.3,1.37657943]
[1773148209480,1.42690029,2056.7,2056.1,1.37657943]
[1773148213577,0.00522209,2056.9,2055.6,0.24711529]
[1773148213578,1.42690029,2056.5,2055.7,1.37657943]
[1773148217887,1.42690029,2056.8,2055.7,1.37657943]
[1773148218591,1.42690029,2056.8,2055.6,3.08485027]
[1773148218592,1.42690029,2056.8,2055.9,1.37657943]
[1773148223490,0.00522209,2056.9,2055.9,1.37657943]
[1773148223491,1.43212238,2056.9,2056.0,1.37657943]
[1773148223696,0.00522209,2056.9,2056.2,4.21430441]
[1773148223994,0.00522209,2056.9,2056.3,1.37657943]
[1773148224191,0.00522209,2056.9,2056.4,1.37657943]
[1773148225290,6.37,2057.7,2056.4,1.37657943]
[1773148225594,1.42690029,2057.5,2056.4,1.37657943]
[1773148225793,1.66991029,2057.5,2056.5,1.37657943]
[1773148226399,1.67345681,2057.5,2056.5,1.37657943]
[1773148227097,1.42690029,2057.1,2056.4,1.37657943]
[1773148228400,1.42690029,2057.1,2056.1,1.37657943]
[1773148228596,2.8412715,2057.5,2056.1,1.37657943]
[1773148228597,1.42690029,2056.9,2056.1,1.37657943]
[1773148231107,1.42690029,2057.1,2056.3,1.37657943]
[1773148238499,1.42690029,2057.1,2056.2,1.32944196]
[1773148238804,1.34602467,2056.9,2056.2,1.32944196]
[1773148242712,1.34602467,2056.7,2055.7,1.32944196]
[1773148247414,1.31313103,2056.5,2055.7,1.32944196]
[1773148248322,1.31313103,2056.3,2055.6,1.35903713]
[1773148252817,1.31313103,2056.3,2055.6,0.00390529]
[1773148254123,1.31313103,2056.1,2055.5,1.35513184]
[1773148255218,1.31313103,2056.1,2055.5,1.36064492]
[1773148260932,1.31313103,2056.1,2055.3,1.35513184]
[1773148262130,1.31313103,2056.1,2055.3,1.36061156]
[1773148263128,0.24315,2056.2,2055.3,1.36061156]
[1773148263328,1.31313103,2056.1,2055.3,1.36061156]
[1773148267239,1.31543771,2055.9,2055.3,1.36061156]
[1773148267436,1.3211066,2055.9,2055.3,1.36061156]
[1773148270930,1.3211066,2055.9,2055.3,0.00547972]
[1773148271339,1.3211066,2055.9,2055.3,1.32994465]
[1773148273338,0.00566889,2055.9,2055.3,1.32994465]
[1773148273735,1.3211066,2055.9,2055.3,1.32994465]
[1773148284344,1.5643066,2055.9,2055.2,1.32446493]
[1773148284549,1.31543771,2055.7,2055.2,0.76536302]
[1773148285450,1.31543771,2055.7,2055.2,0.77113444]
[1773148286953,1.31543771,2055.7,2055.2,0.00577142]
[1773148287154,1.31543771,2055.7,2055.2,1.33023635]
[1773148287556,1.31543771,2055.7,2055.2,0.00577142]
[1773148288154,1.31543771,2055.7,2055.1,1.32446493]
[1773148289256,1.31543771,2055.7,2055.1,1.33000406]
[1773148290857,7.9373066,2055.9,2055.1,1.33000406]
[1773148291057,1.31543771,2055.8,2055.1,1.33000406]
[1773148291252,6.37866889,2055.9,2055.1,1.33000406]
[1773148291651,7.6941066,2055.9,2055.1,1.33000406]
[1773148292560,1.31543771,2055.8,2055.1,1.33000406]
[1773148293865,7.6378051,2055.9,2055.1,1.33000406]
[1773148296767,1.25913621,2055.8,2055.1,1.33000406]
[1773148300867,7.63213621,2056.2,2055.4,1.16913979]
[1773148301067,1.25913621,2056.1,2055.4,1.16913979]
[1773148301766,0.00444053,2056.1,2055.4,1.16913979]
[1773148301968,7.63213621,2056.2,2055.7,1.16913979]
[1773148303174,1.25913621,2056.1,2055.7,1.16913979]
[1773148305070,1.25913621,2056.1,2055.3,1.16913979]
[1773148306967,1.1985271,2055.9,2055.2,1.15422646]
[1773148308670,1.1985271,2055.9,2055.1,0.00553913]
[1773148308868,1.1985271,2055.9,2055.1,1.15976559]
[1773148309073,1.1985271,2055.9,2055.1,0.00553913]
[1773148309277,1.1985271,2055.9,2055.1,1.15976559]
[1773148309680,1.1985271,2055.9,2055.4,1.15422646]
[1773148309875,1.1985271,2055.5,2055.1,0.00553913]
[1773148310079,1.1985271,2055.3,2054.6,1.15422646]
[1773148310578,1.1985271,2055.3,2054.8,1.15422646]
[1773148310979,1.1985271,2055.3,2054.8,1.15826229]
[1773148312182,1.1985271,2055.4,2055.1,3.04682835]
[1773148312582,1.1985271,2055.5,2055.1,1.15422646]
[1773148313981,1.1985271,2055.5,2055.0,1.15422646]
[1773148317687,1.1985271,2055.7,2055.0,1.15422646]
[1773148321388,1.1985271,2055.5,2054.9,1.15422646]
[1773148321882,1.1985271,2055.5,2054.8,0.00403583]
[1773148322084,1.1985271,2055.1,2054.7,0.54505439]
[1773148322282,1.1985271,2055.1,2054.5,1.89260189]
[1773148322481,1.1985271,2055.1,2054.6,1.15422646]
[1773148323092,1.1985271,2055.1,2054.6,1.15963961]
[1773148325392,1.14367564,2054.7,2053.9,1.14183348]
[1773148325598,1.14367564,2054.7,2054.1,1.14183348]
[1773148326391,1.14367564,2054.7,2054.1,1.14646081]
[1773148326392,1.14760719,2054.7,2054.1,1.14646081]
[1773148328496,1.14367564,2054.4,2054.1,0.00462733]
[1773148328693,1.14367564,2054.4,2054.0,1.14183348]
[1773148328997,1.14367564,2054.2,2053.8,1.14183348]
[1773148329195,1.14367564,2054.2,2053.5,1.89260189]
[1773148329393,1.14367564,2054.2,2053.6,1.14183348]
[1773148329699,1.14367564,2054.2,2053.6,1.14645834]
[1773148330194,1.14367564,2054.2,2053.7,1.14183348]
[1773148331298,3.03627753,2054.2,2053.7,1.14183348]
[1773148331504,1.14367564,2054.1,2053.6,0.00462486]
[1773148331798,1.14367564,2053.7,2052.9,1.89260189]
[1773148332000,1.14367564,2053.7,2053.0,1.14183348]
[1773148332200,1.14367564,2053.7,2052.8,6.61854]
[1773148332201,1.14367564,2053.7,2053.2,1.14183348]
[1773148332804,1.14367564,2053.7,2053.2,1.14674863]
[1773148335605,1.14367564,2053.5,2053.2,0.00491515]
[1773148335899,1.14367564,2053.7,2053.4,1.14183348]
[1773148336804,1.14367564,2053.7,2053.4,1.1456538]
[1773148337805,1.14367564,2053.7,2053.4,0.00382032]
[1773148338307,1.14367564,2053.7,2053.2,1.14183348]
[1773148338508,1.14367564,2053.9,2053.5,1.14183348]
[1773148338805,1.14367564,2054.3,2053.8,1.89260189]
[1773148339006,1.14367564,2054.3,2053.9,1.14183348]
[1773148339306,1.14367564,2054.3,2053.9,1.14802263]
[1773148339805,1.14367564,2054.5,2053.9,1.14802263]
[1773148340005,1.14367564,2054.5,2054.0,1.89260189]
[1773148340205,1.14367564,2054.5,2054.1,1.14183348]
[1773148340701,1.14367564,2054.5,2053.9,1.14802263]
[1773148341000,1.14367564,2054.4,2053.9,1.14183348]
[1773148341707,1.14367564,2054.6,2054.1,1.14183348]
[1773148341907,1.14367564,2054.6,2054.1,1.14805331]
[1773148347607,1.14367564,2054.6,2054.1,0.00621983]
[1773148347806,1.14367564,2054.6,2054.0,0.62915045]
[1773148348008,1.14367564,2054.6,2053.4,1.14183348]
[1773148349012,1.14367564,2054.6,2053.4,1.14585085]
[1773148350315,1.14367564,2054.4,2053.4,1.14585085]
[1773148352018,1.14367564,2054.4,2053.5,1.14183348]
[1773148356215,0.24337,2054.3,2053.5,1.14183348]
[1773148356425,1.11087361,2054.2,2053.5,1.14183348]
[1773148356626,1.11087361,2054.2,2053.4,1.16741788]
[1773148357924,1.11087361,2054.0,2053.4,0.00401737]
[1773148359026,1.11087361,2054.0,2053.2,1.16340051]
[1773148359722,1.11087361,2054.0,2052.9,1.16340051]
[1773148360024,1.11087361,2054.0,2052.9,1.16738941]
[1773148363723,1.11087361,2053.9,2053.1,1.16340051]
[1773148365321,1.11087361,2053.7,2053.1,1.16340051]
[1773148365522,1.11087361,2053.9,2053.3,1.16340051]
[1773148366028,1.11087361,2053.9,2053.1,1.16340051]
[1773148368433,1.11087361,2053.9,2053.3,1.09270096]
[1773148369230,1.12488936,2054.3,2053.8,1.09270096]
[1773148371228,1.12488936,2054.4,2053.8,1.09270096]
[1773148371534,1.12488936,2054.6,2053.8,1.09270096]
[1773148378638,1.36823936,2054.6,2053.8,1.09270096]
[1773148378837,1.36823936,2054.6,2053.4,1.09270096]
[1773148385348,1.12488936,2054.6,2053.6,1.09154887]
[1773148393558,1.12488936,2054.6,2053.7,1.09154887]
[1773148394854,1.12488936,2054.6,2054.0,1.09154887]
[1773148395159,1.09163836,2054.7,2054.0,1.09154887]
[1773148405159,1.09163836,2054.7,2053.9,1.09154887]
[1773148405561,1.08770681,2054.5,2053.9,1.09154887]
[1773148408963,1.08770681,2054.5,2053.6,1.09154887]
[1773148414867,1.08770681,2054.5,2053.7,0.97409566]
[1773148415363,1.20316951,2054.6,2053.7,0.97409566]
[1773148415867,0.95982951,2054.5,2053.7,0.97409566]
[1773148418070,0.95982951,2054.3,2053.7,0.97409566]
[1773148426273,5.96183811,2054.7,2053.7,0.97409566]
[1773148426274,0.98919332,2054.5,2053.7,0.97409566]
[1773148428777,0.98919332,2054.5,2053.8,0.94788429]
[1773148431580,0.98919332,2054.5,2053.9,0.94788429]
[1773148436384,0.98919332,2054.6,2054.2,2.84317959]
[1773148436582,0.98919332,2054.6,2053.7,6.377]
[1773148436583,0.98919332,2054.6,2054.3,0.94788429]
[1773148436780,0.97005873,2054.6,2054.3,0.94788429]
[1773148438286,0.97005873,2054.6,2054.1,0.94788429]
[1773148438987,0.97005873,2054.6,2053.9,0.94788429]
[1773148440386,0.97005873,2054.6,2054.1,0.94788429]
[1773148440787,0.98919332,2054.5,2053.9,0.94788429]
[1773148441086,0.98919332,2054.5,2053.7,0.94788429]
[1773148441786,1.23254332,2054.5,2053.7,0.94788429]
[1773148444793,0.91149067,2054.3,2053.7,0.94788429]
[1773148448986,0.91149067,2054.3,2053.5,0.99469506]
[1773148449896,0.91149067,2054.1,2053.5,0.99469506]
[1773148451595,0.91149067,2054.3,2053.6,0.99469506]
[1773148457606,0.91149067,2053.9,2053.4,0.99469506]
[1773148460307,0.91149067,2053.9,2053.2,0.99469506]
[1773148465214,0.91149067,2053.7,2053.2,0.99469506]
[1773148467814,0.91149067,2054.1,2053.6,0.99469506]
[1773148470114,1.15488067,2054.2,2053.6,0.99469506]
[1773148470715,0.91149067,2054.1,2053.6,0.99469506]
[1773148478310,0.24339,2054.2,2053.6,0.99469506]
[1773148478512,1.20171935,2054.2,2053.6,0.99469506]
[1773148479317,0.95832935,2054.1,2053.6,0.99469506]
[1773148485723,0.95832935,2054.1,2053.5,1.8952953]
[1773148485724,0.95832935,2054.3,2054.0,0.97074602]
[1773148485924,0.95832935,2054.5,2054.0,0.97074602]
[1773148486919,0.00393155,2054.7,2054.4,0.96928281]
[1773148486920,0.96728711,2054.7,2054.4,0.96928281]
[1773148487125,0.96335556,2054.8,2054.4,0.97353251]
[1773148488228,0.96934369,2054.8,2054.4,0.97353251]
[1773148488429,0.96934369,2054.8,2054.0,0.96928281]
[1773148489324,0.96934369,2054.8,2054.0,0.97463587]
[1773148493431,0.96335556,2054.9,2054.6,0.96928281]
[1773148493635,0.96335556,2054.9,2054.1,1.89419305]
[1773148493832,0.96335556,2054.9,2054.2,0.96928281]
[1773148494526,0.96896255,2054.9,2054.2,0.96928281]
[1773148495733,0.96896255,2054.9,2054.0,0.97463587]
[1773148497036,0.96896255,2054.9,2054.2,0.96928281]
[1773148498540,0.00560699,2054.9,2054.2,0.96928281]
[1773148498728,7.58363556,2055.2,2054.4,0.96928281]
[1773148499438,0.96335556,2055.1,2054.4,0.96928281]
[1773148499738,0.96860778,2055.1,2054.4,0.96928281]
[1773148500333,0.96335556,2055.5,2054.7,0.96928281]
[1773148500533,0.96335556,2056.2,2054.9,2.86195512]
[1773148500740,0.96335556,2055.9,2054.9,0.96776207]
[1773148501442,0.96335556,2055.7,2054.9,0.96776207]
[1773148501942,0.96335556,2055.6,2054.9,0.96776207]
[1773148502142,0.96335556,2055.6,2054.6,0.96511143]
[1773148502543,0.96335556,2055.5,2054.6,0.96511143]
[1773148503043,0.96335556,2055.7,2054.8,0.9651786]
[1773148503243,0.96335556,2055.7,2055.1,0.96670221]
[1773148503940,0.90463627,2055.8,2055.1,0.96670221]
[1773148504243,0.90944204,2055.9,2055.1,0.96670221]
[1773148505347,0.90944204,2055.9,2055.4,0.9472283]
[1773148505348,0.00480577,2055.9,2055.4,0.9472283]
[1773148505542,0.90463627,2056.1,2055.4,0.9472283]
[1773148506046,0.90463627,2056.3,2055.4,0.9472283]
[1773148506544,0.90854304,2056.3,2055.4,0.9472283]
[1773148511743,2.4336,2056.2,2055.4,0.9472283]
[1773148511946,0.90463627,2056.1,2055.4,0.9472283]
[1773148512647,0.90463627,2056.1,2055.5,0.78644719]
[1773148512848,0.90463627,2056.1,2055.5,0.79069528]
[1773148513146,3.33823627,2056.1,2055.5,0.79069528]
[1773148513544,2.4336,2056.1,2055.5,0.79069528]
[1773148513943,3.33823627,2056.1,2055.5,0.79069528]
[1773148514340,0.90854304,2056.3,2055.5,0.79069528]
[1773148514542,0.90463627,2056.5,2055.8,0.78113994]
[1773148515544,0.90912129,2056.5,2055.8,0.78113994]
[1773148515745,0.90463627,2056.4,2055.9,0.78542896]
[1773148516248,3.33823627,2056.3,2055.9,0.78542896]
[1773148516644,0.90912129,2056.5,2055.9,0.78542896]
[1773148517046,0.90463627,2057.4,2056.3,0.9472283]
[1773148517252,0.90463627,2057.2,2056.3,0.9472283]
[1773148517754,3.33823627,2056.9,2056.3,0.9472283]
[1773148518053,0.90931201,2056.9,2056.3,0.9472283]
[1773148518248,0.90463627,2056.4,2056.0,0.9472283]
[1773148518952,2.4336,2056.4,2056.0,0.9472283]
[1773148519247,2.4336,2056.3,2056.0,0.9472283]
[1773148519449,0.90463627,2056.5,2056.0,0.9472283]
[1773148519949,3.33823627,2056.4,2056.0,0.9472283]
[1773148520150,0.00467574,2056.9,2055.8,0.9472283]
[1773148520151,0.90463627,2056.3,2055.8,0.9472283]
[1773148520749,2.4336,2056.1,2055.8,0.9472283]
[1773148521054,0.90463627,2056.2,2055.8,0.9472283]
[1773148521754,2.4336,2056.1,2055.8,0.9472283]
[1773148522750,2.4336,2056.0,2055.8,0.9472283]
[1773148523056,0.90463627,2056.6,2055.8,0.9472283]
[1773148523254,0.90463627,2056.5,2055.8,0.9472283]
[1773148523457,0.90463627,2056.8,2055.8,0.9472283]
[1773148523852,2.28333307,2056.7,2055.8,0.9472283]
[1773148524053,0.90463627,2056.7,2055.8,0.9472283]
[1773148524350,0.90463627,2056.6,2055.8,0.9472283]
[1773148524751,2.28333307,2056.5,2055.8,0.9472283]
[1773148524951,0.90463627,2056.5,2055.8,0.9472283]
[1773148525357,0.90463627,2056.8,2055.9,0.9472283]
[1773148526051,2.28333307,2056.8,2055.9,0.9472283]
[1773148526252,0.90463627,2056.8,2055.9,0.9472283]
[1773148526455,0.90463627,2056.8,2056.1,0.9472283]
[1773148526849,1.3786968,2056.7,2056.1,0.9472283]
[1773148527055,0.90931201,2056.9,2056.2,0.9472283]
[1773148527255,1.3786968,2056.8,2056.2,0.9472283]
[1773148527460,0.90931201,2056.9,2056.2,0.9472283]
[1773148527758,1.3786968,2056.7,2056.2,0.9472283]
[1773148528058,0.90931201,2056.9,2056.2,0.9472283]
[1773148528256,1.3786968,2056.7,2056.2,0.9472283]
[1773148528750,0.00467574,2056.9,2056.4,0.44920218]
[1773148529060,0.90463627,2056.8,2056.4,0.44944065]
[1773148529259,0.90463627,2056.8,2056.3,0.44944065]
[1773148529462,0.00467574,2056.9,2056.3,0.44944065]
[1773148529955,0.90463627,2057.5,2056.4,0.43971079]
[1773148530360,0.90463627,2057.5,2056.4,6.81071079]
[1773148530562,0.90463627,2057.5,2056.5,0.43970331]
[1773148530960,0.90962206,2057.5,2056.5,0.43970331]
[1773148531461,0.90962206,2057.5,2056.7,0.41443707]
[1773148532961,0.90962206,2057.5,2056.8,0.4146697]
[1773148533758,0.90962206,2057.5,2056.7,0.44251096]
[1773148533963,0.90962206,2057.5,2056.6,0.44251096]
[1773148534957,0.90962206,2057.5,2056.1,0.44294564]
[1773148535158,0.90962206,2057.5,2056.3,0.44294564]
[1773148535870,0.90962206,2057.5,2056.4,0.46372893]
[1773148536163,0.88905927,2057.3,2056.3,6.83394946]
[1773148536763,0.88905927,2057.3,2056.3,0.46394946]
[1773148537061,0.88905927,2057.3,2056.0,0.46394525]
[1773148537460,0.88905927,2057.3,2056.1,6.82380025]
[1773148537861,0.88905927,2057.1,2056.2,0.45380025]
[1773148538955,0.88905927,2057.1,2055.7,0.45422935]
[1773148539163,0.88905927,2057.1,2055.9,0.45422935]
[1773148539564,0.88905927,2057.1,2056.0,0.48896652]
[1773148543564,0.24303,2057.2,2055.6,0.49060675]
[1773148543565,0.88905927,2056.9,2055.6,0.49060675]
[1773148544572,0.88905927,2056.9,2055.8,0.49080175]
[1773148545072,0.88905927,2056.9,2056.0,0.49099557]
[1773148545267,0.88905927,2056.9,2056.1,0.49099557]
[1773148548982,0.88905927,2056.9,2056.0,6.88880337]
[1773148550484,0.88905927,2056.9,2055.6,0.52000236]
[1773148550684,0.88905927,2056.9,2055.8,0.52000236]
[1773148555287,0.88905927,2056.9,2055.9,0.48546588]
[1773148557586,0.88905927,2056.9,2056.1,0.50763853]
[1773148557787,0.88905927,2056.9,2056.2,0.50763853]
[1773148557989,0.92174029,2057.0,2056.4,0.50763853]
[1773148558184,0.92174029,2057.4,2056.4,0.50763853]
[1773148558690,0.24302,2057.3,2056.5,6.37]
[1773148558989,0.92174029,2057.2,2056.4,0.50763853]
[1773148560391,0.92174029,2057.4,2056.4,0.50763853]
[1773148561091,0.92174029,2057.4,2056.6,0.49625768]
[1773148561492,0.92174029,2057.4,2056.6,6.86625768]
[1773148561691,0.92174029,2057.4,2056.5,6.37]
[1773148562092,0.92174029,2057.4,2056.5,0.49312886]
[1773148563298,0.92174029,2057.2,2056.2,0.49328692]
[1773148563897,0.91685953,2057.0,2055.9,6.85994557]
[1773148564097,0.91685953,2057.0,2056.0,0.49010641]
[1773148566190,0.91685953,2056.8,2056.0,0.49010641]
[1773148566390,0.91685953,2056.8,2055.9,0.50848756]
[1773148567298,0.91685953,2056.6,2055.8,0.50863818]
[1773148567493,0.91685953,2056.6,2055.7,6.88004634]
[1773148568199,0.91685953,2056.6,2055.8,0.51120305]
[1773148572502,0.91685953,2056.6,2055.8,6.88120305]
[1773148573002,0.91685953,2056.6,2055.9,0.52961368]
[1773148573398,0.91685953,2056.6,2055.8,6.90516097]
[1773148573899,0.91685953,2056.6,2055.7,0.53516097]
[1773148574104,0.91685953,2056.6,2055.8,6.37]
[1773148574702,0.91685953,2056.6,2055.8,6.90513346]
[1773148575100,0.91685953,2056.6,2055.8,0.53513346]
[1773148575300,0.91685953,2056.4,2055.5,0.53934643]
[1773148576099,0.91685953,2056.4,2055.5,0.00424809]
[1773148576704,0.91685953,2056.2,2055.5,0.00424809]
[1773148579306,0.91685953,2056.2,2055.5,0.540418]
[1773148581807,0.91685953,2056.7,2055.7,0.54123574]
[1773148582007,0.91685953,2056.7,2055.6,0.24322]
[1773148582008,0.91685953,2056.7,2055.9,0.54120007]
[1773148583409,0.91685953,2056.7,2055.7,0.54116459]
[1773148584503,0.91685953,2056.7,2055.5,0.53834025]
[1773148584704,0.91685953,2056.5,2055.5,0.53834025]
[1773148586903,0.91685953,2056.3,2055.5,0.00424809]
[1773148587604,0.91685953,2056.3,2055.5,0.52697801]
[1773148588810,0.91685953,2056.3,2055.5,0.00424809]
[1773148589410,0.91685953,2056.3,2055.5,0.5269268]
[1773148590804,0.91685953,2056.3,2055.5,0.5279993]
[1773148594611,0.91685953,2056.3,2055.5,0.00424809]
[1773148596613,0.91685953,2056.3,2055.2,0.24327]
[1773148596808,0.88997375,2056.1,2055.1,0.48962707]
[1773148597612,0.88997375,2056.1,2055.1,0.49329884]
[1773148597916,0.88997375,2055.9,2055.1,0.00367177]
[1773148598116,0.895205,2055.9,2055.1,0.00367177]
[1773148598312,0.895205,2055.9,2055.1,0.49952865]
[1773148600117,0.895205,2055.9,2055.1,0.00367177]
[1773148600517,0.895205,2055.9,2055.1,0.50640011]
[1773148604222,0.895205,2055.9,2055.1,0.00367177]
[1773148605023,0.88997375,2055.7,2055.1,0.00367177]
[1773148605323,0.88997375,2055.7,2054.8,0.50714682]
[1773148606120,0.88997375,2055.7,2054.8,0.51153993]
[1773148608924,0.88997375,2055.7,2054.8,0.00439311]
[1773148609125,0.88997375,2055.7,2054.8,0.50905551]
[1773148609824,0.94592676,2055.5,2054.8,0.00439311]
[1773148610921,0.94592676,2055.3,2054.8,0.00439311]
[1773148613030,0.94592676,2055.3,2054.5,0.49592179]
[1773148614129,0.94592676,2055.3,2054.5,0.50161343]
[1773148615923,0.94592676,2055.3,2054.5,0.00569164]
[1773148618628,0.94592676,2055.3,2054.5,0.49629017]
[1773148625541,0.94592676,2055.3,2054.6,0.48884104]
[1773148626337,0.94043893,2055.8,2054.8,0.48882261]
[1773148627336,0.94043893,2055.8,2055.0,0.48110498]
[1773148628337,0.94043893,2055.7,2054.8,0.48108353]
[1773148629645,0.94043893,2055.7,2054.6,0.47659693]
[1773148630044,0.94043893,2055.5,2054.5,0.48228857]
[1773148631739,0.94043893,2055.5,2054.7,0.47563115]
[1773148638254,0.94043893,2055.5,2054.8,0.24332]
[1773148638458,0.94043893,2055.5,2054.9,0.45944216]
[1773148639859,0.94043893,2055.5,2054.8,7.069286]
[1773148640054,0.94043893,2055.5,2054.9,0.45195091]
[1773148643561,0.94043893,2055.5,2054.9,0.45146967]
[1773148644065,0.94043893,2055.5,2054.6,0.45145111]
[1773148644764,0.94043893,2055.8,2054.9,0.45145172]
[1773148644964,0.94043893,2055.8,2055.0,6.374]
[1773148645167,0.94043893,2055.8,2055.1,0.45144192]
[1773148649764,0.94043893,2055.8,2055.0,6.374]
[1773148649965,0.94043893,2055.7,2054.7,0.45257064]
[1773148650265,0.94043893,2055.7,2054.6,0.45256375]
[1773148650466,0.94043893,2055.7,2054.7,6.374]
[1773148651071,0.94043893,2055.7,2054.7,6.82654645]
[1773148651767,0.94043893,2055.7,2054.7,0.45254645]
[1773148651965,0.94043893,2055.7,2054.6,6.374]
[1773148652161,0.94043893,2055.7,2054.6,0.45630764]
[1773148652468,0.94043893,2055.5,2054.5,0.00569164]
[1773148652660,0.94043893,2055.3,2054.5,0.00569164]
[1773148653063,0.94043893,2055.1,2054.5,0.00569164]
[1773148655771,0.94043893,2055.1,2054.1,0.4771899]
[1773148656872,0.94111635,2054.9,2054.1,0.00371677]
[1773148657170,0.94111635,2054.9,2053.8,0.47717969]
[1773148657370,0.94111635,2054.9,2053.6,6.374]
[1773148657572,0.94111635,2054.9,2053.7,0.47406112]
[1773148657771,0.94111635,2054.7,2053.7,0.47406112]
[1773148658069,0.94111635,2054.7,2053.7,0.47752931]
[1773148659571,0.94111635,2054.7,2053.7,0.00346819]
[1773148660374,0.94111635,2054.5,2053.7,0.00346819]
[1773148662375,0.94111635,2054.5,2053.7,0.46564145]
[1773148663375,0.94111635,2054.5,2053.7,0.46563684]
[1773148664977,0.94111635,2054.5,2053.7,2.36166459]
[1773148665175,0.94111635,2054.5,2053.8,0.46501826]
[1773148667178,0.94111635,2054.5,2053.7,0.00346819]
[1773148667582,0.94111635,2054.5,2053.7,0.46061675]
[1773148670478,0.94111635,2054.5,2053.7,0.00346819]
[1773148672777,0.94111635,2054.5,2053.7,0.46285784]
[1773148674579,0.94111635,2054.5,2053.9,0.46085405]
[1773148676678,0.94111635,2054.5,2054.0,0.24341]
[1773148676880,0.94111635,2054.5,2054.1,0.48068834]
[1773148677677,0.94111635,2054.5,2054.0,0.72305964]
[1773148678877,0.94111635,2054.5,2054.1,0.47963754]
[1773148680378,0.95758836,2055.2,2054.3,0.9118219]
[1773148680685,0.95758836,2055.2,2054.5,0.9118219]
[1773148680877,0.95758836,2055.2,2054.8,0.9118219]
[1773148681084,0.95758836,2055.8,2054.8,0.9118219]
[1773148687788,0.95758836,2055.8,2054.6,0.90041934]
[1773148690687,0.95758836,2055.8,2054.6,7.27441934]
[1773148690888,0.95758836,2055.8,2054.7,0.90041934]
[1773148691591,0.91134697,2055.6,2054.7,0.90041934]
[1773148691890,0.91134697,2055.6,2054.5,6.374]
[1773148691891,0.91134697,2055.4,2054.5,0.90041934]
[1773148695593,0.91134697,2055.4,2054.7,0.90041934]
[1773148699697,0.91134697,2055.2,2054.5,0.90041934]
[1773148701195,0.91134697,2055.0,2054.5,0.90041934]
[1773148701394,0.91134697,2054.8,2054.3,0.90041934]
[1773148703195,0.91134697,2055.0,2054.4,1.89387657]
[1773148703399,0.91134697,2055.0,2054.5,0.90041934]
[1773148704202,0.91134697,2055.0,2054.3,0.90041934]
[1773148704400,0.91134697,2054.9,2054.3,0.90041934]
[1773148705904,0.91134697,2054.7,2054.2,0.90041934]
[1773148711304,0.91134697,2054.9,2054.4,0.90041934]